Cogmind - Beta 16.1 @@@ ROGUE MODE // 2026.04.18 @ 01:56:24 Player: Rocket Result: Self-destructed Performance ------------- Evolutions (3) 1500 Regions Visited (6) 1200 Robots Destroyed (107) 535 Value Destroyed (2892) 2892 Prototype IDs (1) 20 Alien Tech Used (0) 0 Bonus (43) 43 TOTAL SCORE: 6190 Bonus ------- High Alert Combat Kills 43 Cogmind --------- Core Integrity 145/700 Matter 259/300 Energy 100/100 System Corruption 11% Temperature Cool (0) Movement Core (400) Ox7 Location -7/Lower Caves Parts ------- > --- POWER (2) -------- (None) > --- PROPULSION (4) --- (None) > --- UTILITY (5) ------ Large Storage Unit Signal Interpreter Terrain Scanner Improved Targeting Computer > --- WEAPON (2) ------- Power Maul > --- INVENTORY (15) --- Aluminum Leg Aluminum Leg Medium Matter Pod (100) Medium Matter Pod (100) Improved Light Armor Plating Improved Light Armor Plating EM Disruption Field Force Field Component Analysis Suite Tractor Beam Barrage Gun Light Cannon Improved Proton Missile Launcher Plasma Cutter Peak State ------------ > --- POWER ------------ Deuterium Engine Deuterium Engine > --- PROPULSION ------- Armored Huge Wheel Armored Huge Wheel > --- UTILITY ---------- Large Storage Unit Signal Interpreter Advanced Terrain Scan Processor Improved Targeting Computer System Restoration Module > --- WEAPON ----------- Advanced Assault Cannon Power Maul > --- INVENTORY -------- Aluminum Leg Aluminum Leg Medium Matter Pod Medium Matter Pod Terrain Scanner Improved Light Armor Plating Improved Light Armor Plating System Shield Component Analysis Suite Tractor Beam Light Cannon Light Cannon Light Cannon Assault Cannon Plasma Cutter [Rating: 44] Favorites ----------- Power Deuterium Engine Engine Deuterium Engine Propulsion Aluminum Leg Leg Aluminum Leg Wheel Armored Huge Wheel Utility Improved Targeting Computer Device Terrain Scanner Storage Large Storage Unit Processor Improved Targeting Computer Hackware System Shield Protection Improved Light Armor Plating Weapon Light Cannon Energy Gun Arc Projector Ballistic Gun Assault Rifle Ballistic Cannon Light Cannon Launcher Shock Bomb Launcher Impact Weapon Power Maul Build | -11 -10 -10 -9 -8 -7 -7 ------- Run | Yrd Mat Min Mat Mat Fac Low Slots Evolved 6 | . . . 2 2 2 . Power 1 | . . . . . 1 . Propulsion 2 | . . . 1 1 . . Utility 3 | . . . 1 1 1 . Weapon . | . . . . . . . Parts Attached 57 | 7 4 1 20 5 19 1 Power 8 | 1 . . 5 . 2 . Engine 8 | 1 . . 5 . 2 . Core . | . . . . . . . Reactor . | . . . . . . . Propulsion 15 | 2 . . 9 2 2 . Treads . | . . . . . . . Leg 13 | 2 . . 9 2 . . Wheel 2 | . . . . . 2 . Hover . | . . . . . . . Flight . | . . . . . . . Utility 16 | 1 1 1 3 2 8 . Device 3 | . . . . . 3 . Storage 5 | 1 1 1 1 1 . . Processor 5 | . . . 2 . 3 . Hackware 1 | . . . . . 1 . Protection 2 | . . . . 1 1 . Artifact . | . . . . . . . Weapon 18 | 3 3 . 3 1 7 1 Energy Gun 3 | 2 . . . . 1 . Energy Cannon . | . . . . . . . Ballistic Gun 2 | 1 1 . . . . . Ballistic Cannon 9 | . 2 . 3 1 2 1 Launcher 2 | . . . . . 2 . Special Weapon . | . . . . . . . Impact Weapon 2 | . . . . . 2 . Slashing Weapon . | . . . . . . . Piercing Weapon . | . . . . . . . Special Melee Weapon . | . . . . . . . Unidentified Prototypes 1 | . . . 1 . . . Corrupted Parts 1 | . . . . . 1 . System Corruption 11 | . . . . . 11 . Parts Lost 23 | . . . 6 1 7 9 Power 4 | . . . 1 . 1 2 Propulsion 8 | . . . 3 . 3 2 Utility 2 | . . . . . 1 1 Weapon 9 | . . . 2 1 2 4 Highest Loss Streak 5 | . . . 3 1 4 5 To Critical Strikes . | . . . . . . . Average Backups 12 | . 6 11 13 14 13 12 Power 1 | . 1 2 2 1 . . Propulsion 1 | . . . . 2 2 2 Utility 5 | . . 3 6 6 6 7 Weapon 3 | . 4 5 4 3 4 2 Tool/Special . | . . . . . . . Unused Backups 20 | . 5 . 4 . 1 10 Power 1 | . . . 1 . . . Propulsion 1 | . . . 1 . . . Utility 9 | . . . 2 . . 7 Weapon 7 | . 5 . . . . 2 Tool/Special 2 | . . . . . 1 1 Average Slot Usage (%) 87 | . 88 99 90 98 87 70 Engine 9 | . 14 14 10 9 14 1 Leg 18 | . 28 28 24 36 12 . Wheel 4 | . . . . . 8 15 Device 2 | . . . . . 5 7 Storage 11 | . 17 27 11 9 7 7 Processor 17 | . . . 20 18 19 22 Protection 1 | . . . . 8 3 . Ballistic Cannon 16 | . 19 28 22 18 6 13 Impact Weapon 1 | . . . . . 5 1 Peak Build Rating 44 | 6 8 8 17 23 44 39 Average Rating 21 | 4 6 7 13 21 34 31 On Entrance 14 | . 6 8 8 17 23 39 Avg Prop Armor Cover (%) 10 | . . . . . 9 10 Naked Turns . | . . . . . . . Heaviest Build 55 | 13 36 36 55 38 55 42 Greatest Support 56 | 20 20 20 36 48 56 56 Greatest Overweight (x) 3 | . 1 1 3 . 1 1 Average Overweight (x) . | . . 1 . . . . Largest Inventory Capacity 15 | 8 15 15 15 15 15 15 Average Capacity 14 | 6 9 15 15 15 15 15 Most Carried 15 | 1 11 12 15 15 15 15 Average Carried 12 | . 7 11 13 14 13 12 Final Capacity 15 | 8 15 15 15 15 15 15 Final Carried 15 | 1 11 11 15 15 14 14 Class Distribution -------------------- 100% | Mutant Dominant Class ---------------- Mutant | -10/Materials Mutant | -10/Mines Mutant | -9/Materials Mutant | -8/Materials Mutant | -7/Factory Mutant | -7/Lower Caves Resources | -11 -10 -10 -9 -8 -7 -7 ----------- Run | Yrd Mat Min Mat Mat Fac Low Matter Collected 2914 | 257 . 164 1222 399 424 448 Remotely . | . . . . . . . Salvage Created 2785 | . . 69 1281 533 549 353 Parts 169 | . . 8 91 28 34 8 Haulers Intercepted 6 | . . . 5 1 . . Recyclers Shooed . | . . . . . . . Parts Field Recycled . | . . . . . . . Retrieved Matter . | . . . . . . . Parts Self-Destructed 7 | . . . . . . 7 Prevented 1 | . . . . . . 1 Parts Restored . | . . . . . . . Kills | -11 -10 -10 -9 -8 -7 -7 ------- Run | Yrd Mat Min Mat Mat Fac Low Combat Hostiles Destroyed 74 | . . 8 33 8 14 11 Melee 2 | . . . . . 2 . Cannons 61 | . . 8 33 8 5 7 AOE 7 | . . . . . 7 . Classes Destroyed 15 | . . 1 8 1 3 2 Worker 10 | . . . 2 2 6 . Builder 4 | . . . . . 4 . Tunneler 3 | . . . 2 . 1 . Hauler 6 | . . . 5 1 . . Recycler 3 | . . . 1 2 . . Operator 1 | . . . 1 . . . Watcher 6 | . . . 2 4 . . Swarmer 23 | . . 8 4 . 9 2 Grunt 33 | . . . 23 4 . 6 Brawler 1 | . . . . . . 1 Duelist 2 | . . . . . . 2 Sentry 10 | . . . 6 2 2 . Specialist 2 | . . . . 2 . . Hunter 1 | . . . . . 1 . Programmer 2 | . . . . . 2 . Best Kill Streak 10 | . . 3 5 5 10 6 Combat Bots Only 6 | . . 3 5 2 6 6 Max Kills in Single Turn 3 | . . 1 2 2 3 1 Gunslinging . | . . . . . . . Exploded 3 | . . . . . 3 . Melee 1 | . . . . . 1 . Uniques/NPCs Destroyed . | . . . . . . . Combat | -11 -10 -10 -9 -8 -7 -7 -------- Run | Yrd Mat Min Mat Mat Fac Low Hostile Shots Fired 461 | . . 46 128 52 150 85 Missed 144 | . . 16 37 19 48 24 Hits 317 | . . 30 91 33 102 61 Melee 8 | . . . . 1 . 7 Projectile 309 | . . 30 91 32 102 54 Critical Strikes 8 | . . . 4 . . 4 Damage Taken 4198 | . . 243 1050 499 1171 1235 Core 758 | . . 34 153 16 261 294 Absorbed by Shields . | . . . . . . . Core Remaining (%) 86 | 100 . 86 61 97 . . Volleys Fired 231 | . . 17 101 43 33 37 Largest 2 | . . 2 2 2 2 2 Hottest 77 | . . 60 60 60 77 67 Shots Fired 431 | . . 34 200 86 51 60 Gun . | . . . . . . . Cannon 421 | . . 34 200 86 41 60 Launcher 10 | . . . . . 10 . Special . | . . . . . . . Kinetic 421 | . . 34 200 86 41 60 Thermal . | . . . . . . . Explosive 2 | . . . . . 2 . Electromagnetic 8 | . . . . . 8 . Robot Hit Streak 28 | . . 7 28 14 8 7 Robot Miss Streak 5 | . . 3 2 1 5 3 Penetration Max . | . . . . . . . Secondary Targets . | . . . . . . . Shots Hit Robots 313 | . . 17 143 64 45 44 Core Hits 125 | . . 7 52 29 23 14 Critical Kills 3 | . . . . . 3 . Critical Parts Destroyed 2 | . . . . . 1 1 Critical Strikes 21 | . . 3 7 3 5 3 Blast 15 | . . 3 7 3 1 1 Smash 6 | . . . . . 4 2 Melee Attacks 33 | . . . . . 22 11 Impact 33 | . . . . . 22 11 Slashing . | . . . . . . . Piercing . | . . . . . . . Sneak Attacks 9 | . . . . . 8 1 Combat Hostiles 1 | . . . . . . 1 Follow-up Attacks . | . . . . . . . Damage Inflicted 7312 | . . 320 2460 1146 2160 1226 Guns . | . . . . . . . Cannons 5549 | . . 314 2460 1146 751 878 Explosions 458 | . . . . . 458 . Melee 1299 | . . . . . 951 348 Ramming 6 | . . 6 . . . . Kinetic 5549 | . . 314 2460 1146 751 878 Thermal . | . . . . . . . Explosive 169 | . . . . . 169 . Electromagnetic 289 | . . . . . 289 . Impact 1299 | . . . . . 951 348 Slashing . | . . . . . . . Piercing . | . . . . . . . Highest Corruption 11 | . . . . . 11 11 Average Corruption 8 | . . . . . 3 11 Corruption Purged 2 | . . . . . 2 . Corruption Blocked . | . . . . . . . Effects 46 | . . . . . 7 39 Message Errors 10 | . . . . . 2 8 Matter Fused 13 | . . . . . 2 11 Heat Flow Errors 4 | . . . . . 1 3 Energy Discharges 6 | . . . . . 1 5 Parts Rejected 1 | . . . . . . 1 Data Loss (minor) 3 | . . . . . . 3 Data Loss (major) 4 | . . . . . 1 3 Misfires 1 | . . . . . . 1 Alerts 1 | . . . . . . 1 Weapon Failures 3 | . . . . . . 3 Overload Shots . | . . . . . . . Overflow Damage 622 | . . 15 18 . 416 173 Projectiles 93 | . . 15 18 . 17 43 Explosions 7 | . . . . . 7 . Melee 522 | . . . . . 392 130 Knockbacks 35 | . . . 20 5 3 7 Impact . | . . . . . . . Kinetic 33 | . . . 19 5 3 6 Secondary 2 | . . . 1 . . 1 Self-Inflicted Damage 25 | . . . . . 25 . Shots 3 | . . . . . 3 . Rammed . | . . . . . . . Targets Rammed 1 | . . 1 . . . . Kicked 1 | . . 1 . . . . Crushed . | . . . . . . . Highest Temperature 189 | . . . 63 21 89 189 Average Temperature 22 | . . . 14 7 20 57 Received Heat Transfer 1230 | . . . 459 198 114 459 Siege Activations . | . . . . . . . Martial Activations . | . . . . . . . Shielding Activations . | . . . . . . . Robots Disrupted . | . . . . . . . Combat Hostiles . | . . . . . . . Robots Corrupted 4 | . . . . . . 4 Combat Hostiles 4 | . . . . . . 4 Parts Fried 17 | . . . . . 10 7 Impact Corruptions 21 | . . . . . 14 7 Robots Melted . | . . . . . . . Combat Hostiles . | . . . . . . . Parts Melted . | . . . . . . . Heat Transferred . | . . . . . . . Parts Sabotaged . | . . . . . . . Parts Stolen . | . . . . . . . Parts Stripped . | . . . . . . . Power Chain Reactions . | . . . . . . . Alert | -11 -10 -10 -9 -8 -7 -7 ------- Run | Yrd Mat Min Mat Mat Fac Low Maximum Alert Level 2 | . . . 2 1 . . Low Security (%) 78 | 100 100 100 76 17 100 . Level 1 14 | . . . 7 82 . . Level 2 6 | . . . 15 . . . Level 3 . | . . . . . . . Level 4 . | . . . . . . . Level 5 . | . . . . . . . High Security . | . . . . . . . Max Security . | . . . . . . . Peak Influence 506 | . 5 100 506 270 190 . Initial 201 | . . . . 201 113 . Average 126 | . . 47 150 222 113 . Influence Increases 2228 | . 5 190 967 281 510 275 Destroy 0b10 Robot/C 1480 | . . 160 660 160 280 220 Destroy 0b10 Robot/NC 170 | . . . 70 45 55 . Destroy Leader 304 | . . 30 154 40 70 10 Successful Hack 45 | . 5 . 21 5 14 . Disable Machine 75 | . . . 30 15 30 . Destroy Structure 19 | . . . 2 1 16 . Partial Spotted 15 | . . . . 15 . . Lose Combat Pursuer 120 | . . . 30 . 45 45 Influence Decreases 2131 | . 5 190 490 508 587 351 Entered New Map 478 | . . . . 276 137 65 Time Decay 1423 | . 5 190 430 222 380 196 Lost Part 230 | . . . 60 10 70 90 Squads Dispatched 10 | . . . 4 4 2 . Investigation 2 | . . . 2 . . . Extermination 2 | . . . . . 2 . Reinforcement 4 | . . . 2 2 . . Assault . | . . . . . . . Garrison 2 | . . . . 2 . . Intercept . | . . . . . . . Searches Triggered . | . . . . . . . Construction Impeded . | . . . . . . . Haulers Reinforced . | . . . . . . . Active Scanning Responses . | . . . . . . . Cargo Convoy Interrupts . | . . . . . . . Stealth | -11 -10 -10 -9 -8 -7 -7 --------- Run | Yrd Mat Min Mat Mat Fac Low Distress Signals 5 | . . . 3 2 . . Communications Jammed . | . . . . . . . Distress Signals . | . . . . . . . Times Spotted 97 | . . 8 39 15 20 15 Peak Tracking Total 9 | . 1 3 5 3 6 9 Tactical Retreats 6 | . . . 2 . 3 1 Traps | -11 -10 -10 -9 -8 -7 -7 ------- Run | Yrd Mat Min Mat Mat Fac Low Traps Triggered . | . . . . . . . Indirectly . | . . . . . . . Trap Hack Attempts . | . . . . . . . Triggered . | . . . . . . . Disarmed . | . . . . . . . Reprogrammed . | . . . . . . . Reused . | . . . . . . . Traps Extracted . | . . . . . . . Installed . | . . . . . . . Triggered . | . . . . . . . Machines | -11 -10 -10 -9 -8 -7 -7 ---------- Run | Yrd Mat Min Mat Mat Fac Low Machines Disabled 5 | . . . 2 1 2 . Max in Single Turn 1 | . . . 1 1 1 . Machines Repaired . | . . . . . . . Machines Dismantled . | . . . . . . . Machines Sabotaged . | . . . . . . . Overloaded Fab Kills . | . . . . . . . Hacking | -11 -10 -10 -9 -8 -7 -7 --------- Run | Yrd Mat Min Mat Mat Fac Low Machines Accessed 14 | . 2 . 6 3 2 1 Terminals 12 | . 2 . 5 3 2 . Fabricators . | . . . . . . . Repair Stations . | . . . . . . . Recycling Units . | . . . . . . . Scanalyzers 1 | . . . 1 . . . Garrison Access . | . . . . . . . Total Hacks 34 | . 4 . 18 6 5 1 Successful 14 | . 1 . 8 3 1 1 Failed 20 | . 3 . 10 3 4 . Catastrophic 4 | . 1 . 1 . 2 . Database Lockouts . | . . . . . . . Manual 27 | . 4 . 13 5 5 . Terminals 30 | . 4 . 15 6 5 . Fabricators . | . . . . . . . Repair Stations . | . . . . . . . Recycling Units . | . . . . . . . Scanalyzers 3 | . . . 3 . . . Garrison Access . | . . . . . . . Terminal Hacks 4 | . . . 2 1 . 1 Open Door 1 | . . . . . . 1 Branch Access Points 1 | . . . 1 . . . Hauler Manifests 1 | . . . . 1 . . Zone Layout 1 | . . . 1 . . . Fabricator Hacks . | . . . . . . . Repair Station Hacks . | . . . . . . . Recycling Unit Hacks . | . . . . . . . Scanalyzer 2 | . . . 2 . . . Retrieve Study 2 | . . . 2 . . . Garrison Access Hacks . | . . . . . . . Unauthorized Hacks 8 | . 1 . 4 2 1 . Terminals 8 | . 1 . 4 2 1 . Botnet 8 | . 1 . 4 2 1 . Fabricators . | . . . . . . . Repair Stations . | . . . . . . . Recycling Units . | . . . . . . . Scanalyzers . | . . . . . . . Garrison Access . | . . . . . . . Data Cores Recovered 1 | . . . 1 . . . Used 1 | . . . 1 . . . Hacking Detections 12 | . 2 . 6 2 2 . Full Trace Events 3 | . . . 3 . . . Feedback Events . | . . . . . . . Feedback Blocked . | . . . . . . . Robot Schematics Acquired . | . . . . . . . Robots Built . | . . . . . . . Authchips . | . . . . . . . Time . | . . . . . . . Total Robot Build Rating . | . . . . . . . Part Schematics Acquired . | . . . . . . . Parts Built . | . . . . . . . Authchips . | . . . . . . . Time . | . . . . . . . Total Part Build Rating . | . . . . . . . Part Studies Acquired 2 | . . . 2 . . . Parts Repaired . | . . . . . . . Time . | . . . . . . . Parts Recycled . | . . . . . . . Recycled Matter . | . . . . . . . Retrieved Matter . | . . . . . . . Retrieved Components . | . . . . . . . Parts Scanalyzed . | . . . . . . . Part Schematics Acquired . | . . . . . . . Parts Damaged . | . . . . . . . Bothacking | -11 -10 -10 -9 -8 -7 -7 ------------ Run | Yrd Mat Min Mat Mat Fac Low Used RIF Installer . | . . . . . . . Robots Hacked . | . . . . . . . Non-combat . | . . . . . . . Combat . | . . . . . . . Robot Hacks Applied . | . . . . . . . Relay Couplers Released . | . . . . . . . Fabnet Peak Effective % . | . . . . . . . Robots Rewired . | . . . . . . . Allies Hacked . | . . . . . . . Hacks Repelled . | . . . . . . . Allies | -11 -10 -10 -9 -8 -7 -7 -------- Run | Yrd Mat Min Mat Mat Fac Low Total Allies . | . . . . . . . Largest Group . | . . . . . . . Highest-Rated Group . | . . . . . . . Highest-Rated Ally . | . . . . . . . Total Orders . | . . . . . . . Ally Attacks . | . . . . . . . Total Damage . | . . . . . . . Kills . | . . . . . . . Allies Corrupted . | . . . . . . . Allies Melted . | . . . . . . . Intel | -11 -10 -10 -9 -8 -7 -7 ------- Run | Yrd Mat Min Mat Mat Fac Low Active Infowar (turns) 1746 | . . . . . 754 992 Terrain 1746 | . . . . . 754 992 Robot Analysis Total . | . . . . . . . Derelict Logs Recovered 2 | . . 1 . . . 1 Drone Launches . | . . . . . . . Drone Recoveries . | . . . . . . . Exploration | -11 -10 -10 -9 -8 -7 -7 ------------- Run | Yrd Mat Min Mat Mat Fac Low Turns Passed 4565 | 67 239 388 1516 471 892 992 Spaces Moved 2553 | 48 161 176 746 285 568 569 Core 4 | 4 . . . . . . Treads . | . . . . . . . Legs 1551 | 44 161 176 746 285 139 . Wheels 998 | . . . . . 429 569 Hover . | . . . . . . . Flight . | . . . . . . . Fastest Speed 50 | 50 120 190 115 108 100 100 Average Speed 132 | 114 132 190 155 109 119 108 Slowest Speed 315 | 120 190 190 315 112 183 115 Overloaded Moves . | . . . . . . . Propulsion Burnouts . | . . . . . . . Robots Hopped . | . . . . . . . Potential Cave-ins . | . . . . . . . Cave-ins Triggered . | . . . . . . . Exploration Rate (%) 30 | 3 30 30 55 29 13 50 Regions Visited 6 Branch Regions 2 Pre-discovered Areas 1 | . . 1 . . . . Known Exits Taken 1 | . . . . . 1 . Unknown Exits Taken 5 | 1 1 1 1 1 . . Scrap Searched 1 | . . . . . . 1 Spaces Dug 6 | . . . . . 6 . Terrain Destroyed 14 | . . . . . 13 1 Melee 6 | . . . . . 6 . Projectile 5 | . . . . . 4 1 AOE 3 | . . . . . 3 . Terrain Rammed . | . . . . . . . Walls Destroyed . | . . . . . . . Machines Disabled . | . . . . . . . Actions | -11 -10 -10 -9 -8 -7 -7 --------- Run | Yrd Mat Min Mat Mat Fac Low Total 3244 | 57 189 196 901 357 684 860 Wait 276 | 1 . . 12 14 15 234 Move 2547 | 47 160 175 745 284 567 569 Hop . | . . . . . . . Pick Up 46 | 1 16 1 9 5 10 4 Fast Attach 27 | 7 4 . 9 1 6 . Attach 19 | . . 1 4 2 8 4 Detach 1 | . . . . . 1 . Swap 26 | . . . 9 3 13 1 Drop 37 | 1 9 1 12 5 9 . Fire 231 | . . 17 101 43 33 37 Melee 33 | . . . . . 22 11 Ram . | . . . . . . . Kick 1 | . . 1 . . . . Crush . | . . . . . . . Escape Stasis . | . . . . . . . Rewire . | . . . . . . . Trap . | . . . . . . . Miscellaneous . | . . . . . . . Route ------- -11/Scrapyard -10/Materials -10/Mines -9/Materials (discovered 2 exits: *Mat / Min) -8/Materials -7/Factory (discovered 2 exits: *Fac / *Low) -7/Lower Caves History --------- Turn | Location | Event 3 | -11/Scrapyard | Discovered new exit (range 15) 68 | -11/Scrapyard | Entered Materials 234 | -10/Materials | Discovered new exit (range 16) 307 | -10/Materials | Entered Mines 319 | -10/Mines | Build established: Mutant 358 | -10/Mines | Met a Derelict bent on vengeance 423 | -10/Mines | Learned location of Zion (-7) 458 | -10/Mines | Discovered new exit (range 10) 695 | -10/Mines | Entered Materials 695 | -9/Materials | Evolved 2 slots: Propulsion x1, Utility x1 1106 | -9/Materials | Discovered new exit (range 9) 1679 | -9/Materials | Lost 3 parts (1p1n1w) 1896 | -9/Materials | Identified exit to Mines 2211 | -9/Materials | Entered another Materials area 2211 | -8/Materials | Evolved 2 slots: Propulsion x1, Utility x1 2410 | -8/Materials | Discovered new exit (range 12) 2575 | -8/Materials | Garrison activated, responded to threat 2682 | -8/Materials | Entered Factory 2682 | -7/Factory | Evolved 2 slots: Power x1, Utility x1 2955 | -7/Factory | Lost 4 parts (3n1w) 3119 | -7/Factory | Discovered new exit (range 6) 3126 | -7/Factory | Identified exit to Factory 3408 | -7/Factory | Discovered new exit (range 13) 3477 | -7/Factory | Identified exit to Lower Caves 3496 | -7/Factory | System corruption reached 10% 3574 | -7/Factory | Entered Lower Caves 3584 | -7/Lower Caves | Learned Factory interactive machine intel 3724 | -7/Lower Caves | Lost 4 parts (2p2w) 4506 | -7/Lower Caves | Core integrity fell below 50% 4519 | -7/Lower Caves | Attracted the attention of an 0b10 outpost 4566 | -7/Lower Caves | Self-destructed Last Messages --------------- 04543_ Particle Gun fried. 04543_ Lgt. Nuclear Core fried. 04545_ Acquired 101 matter. 04548_ System corrupted: Component data lost. 04549_ L-41 Fighter suffers critical hit (Smash). 04549_ Destroyed Core Shielding. 04549_ L-41 Fighter system corrupted by crushing effect. 04550_ L-41 Fighter system terminally corrupted. 04550_ Imp. Melee Analysis Suite fried. 04550_ Microactuators fried. 04552_ Acquired 107 matter. 04556_ Penetrated by Slug. 04559_ Slug penetrates Wall. 04563_ Arm. Huge Wheel destroyed. 04564_ Corrupted Unknown Leg self-destruct mechanism malfunctions. 04565_ Penetrated by Slug. 04565_ Arm. Huge Wheel destroyed. Map ----- +----------------------------------------------------+ | ?????????????????????????????????????????????????? | | ?????????????????????????????????????????????????? | | ?????????????????????????????????????????????????? | | ?????????????????????????????????????????????????? | | ?????????????????????????????????????????????????? | | ?????????????????????????????????????????????????? | | ?????????????????????????????????????????????????? | | ?????????????????????????????????????????????????? | | ?????????????????????????????????????????????????? | | ?????????????????????????????????????????????????? | | ?????????????????????????????????????????????????? | | ??????????????????????#??????????????????????????? | | ???????????????????????#?###???#?????????????????? | | ???????????????????# ?## ? ??????????????????? | | ??????????????????#? ?# ######????????????????? | | ???????????????##? ? #""""????????????????? | | ?????????????????? ? # ?#?????????? ????? | | ??????? ? ? ???? ? # ?#?????? ????????? | | ??????????? ?? #?# ? ## ? ##???????????? | | ???????????? ###### ## # "# ##?#???#??#??? | | ????? ?### ? ?##### ## #""?"# #?##??#?##????? | | ?????#??##?? #?## ## ####### #?##???###???#? | | ?? ?####?#? ? ### ## ? ?#######?#?#??#? | | ????? #### ### #####?#########???##???? | | ??### ## ### ###l#################?#??### | | ?????? #### ######@############ ###?#??#??# | | ??####? ? #### ######Y########?## ###?#?##?# | | ???#?##??#### % " ###### ######### | | ??#?######## %% ######## ###### | | ??#######?# % ##### ####?## ### | | ??########## ####### ###### ### | | #?########### ######### ###### ###### | | #?############ ######### % ##### | | ?###?######### ######## % ## | | ?##?########## ############### ### | | ############ ###########?### ### | | ############# ############# ### | | ?############ ## ############ ## #### | | ############ ### ### ######### ######## | | ########### ####### ####### | | ########### ####### ######### | | ?####X ### ###### ##?######## | | ###### ## ####### ### ###?####### | | #### #### ## ######## ##?######### | | ?####]!#### ######## #?#?##?##### | | ########### ######### ########?###### | | ##?########### ########### ######??######## | | #?#########?### ##### ###### #############?### | | ?############### #### ###### ################## | | ################ ### ############## #######? | +----------------------------------------------------+ Best States ------------- Heat Dissipation 34 Energy Generation 23 Energy Capacity 500 Matter Stores 300 Matter Capacity 300 Sight Range 16 Terrain Scan Range 14 Terrain Scan Density 210 Armor Coverage 150 Evasion (%) 55 Targeting Accuracy 12 Defensive Hacking 10 Item Schematics ----------------- None Robot Schematics ------------------ None Fabricated ------------ Nothing Repaired ---------- Nothing Studied --------- Aluminum Leg | -9/Materials | Hacked Lgt. Cannon | -9/Materials | Hacked Alien Tech Used ----------------- None Achievements -------------- None Challenges ------------ None Game ------ Seed StrikeAssaultFocus Manual? 0 Play Time 00:36:36 Cumulative 142.6 hours Start 2026.04.18 @ 00:49:49 End 2026.04.18 @ 01:56:24 Sessions 1 Manual Loads 0 Difficulty Rogue Special Mode None Game No. 197 Rogue 197 Adventurer 0 Explorer 0 Win Type - Total 1 Types 1/0/0/0/0/0/0/0/0/0 Lore% 38 Gallery% 49 Achievement% 39 Wizard Run 0 Options --------- Layout 1 ASCII 0 Keyboard 0 Movement Mouse Keybinds 0 Fullscreen 2 Font 24/Smallcaps Map View 25x17 Zoom Use 23% Tactical HUD 1 Map Filters NONE Filters NONE Steam 1 RUN: e024e7d8-5ba6-4356-b5b1-638a928a204d